[Event "FIDE WCCC G12 2018"]
[Site "Santiago de Compostela"]
[Date "2018.11.10"]
[Round "6"]
[White "Ivanova, Dilyana"]
[Black "Baalla, Nura"]
[Result "1/2-1/2"]
[ECO "C06"]
[WhiteElo "1775"]
[BlackElo "1565"]
[Annotator "NA"]
[PlyCount "80"]
[EventDate "2018.11.04"]
[EventType "swiss"]
[EventCountry "ESP"]
[SourceTitle "playchess.com"]
[Source "ChessBase"]
[SourceQuality "1"]
[TimeControl "40/5400+30:1800+30"]

1. e4 {[%emt 0:00:00]} e6 {[%emt 0:00:00]} 2. d4 {[%emt 0:00:00]} d5 {[%emt 0:00:00]} 3. Nd2 {[%emt 0:00:00]} Nf6 {[%emt 0:00:00]} 4. e5 {[%emt 0:00:00]} Nfd7 {[%emt 0:00:00]} 5. Bd3 {[%emt 0:00:00]} c5 {[%emt 0:00:00]} 6. c3 {[%emt 0:00:03]} Nc6 {[%emt 0:00:00]} 7. Ne2 {[%emt 0:00:08]} cxd4 {[%emt 0:00:29]} 8. cxd4 {[%emt 0:00:06]} f6 {[%emt 0:00:32]} 9. exf6 {[%emt 0:00:07]} Nxf6 {[%emt 0:00:04]} 10. O-O {[%emt 0:00:11]} Bd6 {[%emt 0:00:48]} 11. Nf3 {[%emt 0:00:11]} Qc7 {[%emt 0:03:42]} 12. h3 {[%emt 0:04:03]} O-O {[%emt 0:02:13]} 13. Nc3 {[%emt 0:00:55]} a6 {[%emt 0:02:27]} 14. Be3 {[%emt 0:02:21]} Bd7 {[%emt 0:11:49]} 15. a3 {[%emt 0:03:41]} Be8 {[%emt 0:03:51]} 16. Qc2 {[%emt 0:05:34]} Bf4 {[%emt 0:10:55]} 17. Qd2 {[%emt 0:04:02]} Nh5 {[%emt 0:12:26]} 18. Ng5 {[%emt 0:05:03]} Bxg5 {[%emt 0:02:12]} 19. Bxg5 {[%emt 0:00:11]} Nxd4 {[%emt 0:05:14]} 20. Bxh7+ {[%emt 0:01:48]} Kxh7 {[%emt 0:00:14]} 21. Qxd4 {[%emt 0:00:25]} Nf4 {[%emt 0:11:05]} 22. Rfe1 {[%emt 0:05:44]} Rf5 {[%emt 0:04:04]} 23. Bxf4 {[%emt 0:05:16]} Rxf4 {[%emt 0:00:50]} 24. Qe5 {[%emt 0:02:54]} Qxe5 {[%emt 0:00:46]} 25. Rxe5 {[%emt 0:00:06]} Bf7 {[%emt 0:02:58]} 26. Rd1 {[%emt 0:03:46]} Rc4 {[%emt 0:09:52]} 27. Rd2 {[%emt 0:03:26]} Kg6 {[%emt 0:07:24]} 28. g3 {[%emt 0:04:27]} b5 {[%emt 0:01:55]} 29. Ne2 {[%emt 0:04:01]} Rac8 {[%emt 0:02:37]} 30. Nd4 {[%emt 0:03:16]} Kf6 {[%emt 0:00:44]} 31. f4 {[%emt 0:00:42]} Re8 {[%emt 0:01:35]} 32. Kf2 {[%emt 0:02:06]} Bg6 {[%emt 0:01:00]} 33. Ke2 {[%emt 0:14:14]} Be4 {[%emt 0:01:48]} 34. Kf2 {[%emt 0:04:34]} Rc1 {[%emt 0:01:53]} 35. Nb3 {[%emt 0:02:25]} Rh1 {[%emt 0:00:56]} 36. h4 {[%emt 0:00:28]} Rh2+ {[%emt 0:00:06]} 37. Ke3 {[%emt 0:00:39]} Rh3 {[%emt 0:00:08]} 38. Kf2 {[%emt 0:01:26]} Rh2+ {[%emt 0:00:44]} 39. Ke3 {[%emt 0:01:01]} Rh3 {[%emt 0:00:29]} 40. Kf2 {[%emt 0:00:00]} Rh2+ {[%emt 0:00:00]} 1/2-1/2

[Event "FIDE WCCC G12 2018"]
[Site "Santiago de Compostela"]
[Date "2018.11.10"]
[Round "6"]
[White "Sevcikova, Lucia"]
[Black "Zhai, Pinran"]
[Result "1/2-1/2"]
[ECO "D20"]
[WhiteElo "1768"]
[BlackElo "1558"]
[Annotator "NA"]
[PlyCount "100"]
[EventDate "2018.11.04"]
[EventType "swiss"]
[EventCountry "ESP"]
[SourceTitle "playchess.com"]
[Source "ChessBase"]
[SourceQuality "1"]
[TimeControl "40/5400+30:1800+30"]

1. d4 {[%emt 0:00:00]} d5 {[%emt 0:00:00]} 2. c4 {[%emt 0:00:00]} dxc4 {[%emt 0:00:08]} 3. e3 {[%emt 0:02:31]} Nf6 {[%emt 0:00:35]} 4. Bxc4 {[%emt 0:00:17]} e6 {[%emt 0:00:07]} 5. Nc3 {[%emt 0:00:35]} a6 {[%emt 0:00:22]} 6. Nf3 {[%emt 0:00:46]} b5 {[%emt 0:01:33]} 7. Bd3 {[%emt 0:00:49]} Bb7 {[%emt 0:00:39]} 8. a3 {[%emt 0:01:40]} c5 {[%emt 0:01:57]} 9. dxc5 {[%emt 0:02:04]} Bxc5 {[%emt 0:00:55]} 10. O-O {[%emt 0:01:35]} O-O {[%emt 0:00:50]} 11. Qe2 {[%emt 0:03:51]} Nbd7 {[%emt 0:03:24]} 12. e4 {[%emt 0:05:26]} e5 {[%emt 0:01:55]} 13. Bg5 {[%emt 0:01:39]} Re8 {[%emt 0:05:51]} 14. Rfd1 {[%emt 0:01:39]} Qb6 {[%emt 0:01:25]} 15. Rac1 {[%emt 0:03:18]} h6 {[%emt 0:02:47]} 16. Bh4 {[%emt 0:01:32]} Bd4 {[%emt 0:01:14]} 17. Bb1 {[%emt 0:08:10]} Rac8 {[%emt 0:16:38]} 18. Qd2 {[%emt 0:06:36]} Bxc3 {[%emt 0:01:01]} 19. Rxc3 {[%emt 0:00:24]} Nf8 {[%emt 0:07:31]} 20. Rxc8 {[%emt 0:05:17]} Rxc8 {[%emt 0:03:43]} 21. Nxe5 {[%emt 0:03:43]} Bxe4 {[%emt 0:12:34]} 22. Bxe4 {[%emt 0:10:51]} Nxe4 {[%emt 0:01:13]} 23. Qd5 {[%emt 0:03:25]} Qe6 {[%emt 0:00:05]} 24. Qxe4 {[%emt 0:01:59]} Rc4 {[%emt 0:00:01]} 25. Qa8 {[%emt 0:09:59]} Qxe5 {[%emt 0:00:20]} 26. Qd8 {[%emt 0:02:06]} Re4 {[%emt 0:07:23]} 27. h3 {[%emt 0:03:45]} Qe8 {[%emt 0:01:38]} 28. Bg3 {[%emt 0:02:19]} Kh7 {[%emt 0:01:45]} 29. Qd3 {[%emt 0:00:58]} Ng6 {[%emt 0:00:14]} 30. Qd7 {[%emt 0:01:33]} Re1+ {[%emt 0:05:23]} 31. Kh2 {[%emt 0:00:03]} Qe6 {[%emt 0:01:06]} 32. Qxe6 {[%emt 0:03:42]} Rxe6 {[%emt 0:00:10]} 33. Rd2 {[%emt 0:01:00]} Ne7 {[%emt 0:01:35]} 34. Rd7 {[%emt 0:00:43]} Kg6 {[%emt 0:00:35]} 35. Bd6 {[%emt 0:03:21]} Nf5 {[%emt 0:00:19]} 36. Bb4 {[%emt 0:01:22]} Re2 {[%emt 0:01:25]} 37. Rd2 {[%emt 0:00:18]} Re6 {[%emt 0:01:51]} 38. g4 {[%emt 0:01:14]} Ne7 {[%emt 0:00:51]} 39. f4 {[%emt 0:01:08]} f5 {[%emt 0:01:11]} 40. Bxe7 {[%emt 0:00:00]} Rxe7 {[%emt 0:00:00]} 41. Rd6+ {[%emt 0:06:04]} Kf7 {[%emt 0:00:02]} 42. Rxa6 {[%emt 0:02:12]} Re2+ {[%emt 0:00:33]} 43. Kg3 {[%emt 0:02:24]} Rxb2 {[%emt 0:00:28]} 44. gxf5 {[%emt 0:01:11]} b4 {[%emt 0:00:11]} 45. axb4 {[%emt 0:01:31]} Rxb4 {[%emt 0:00:02]} 46. Re6 {[%emt 0:00:52]} Rb3+ {[%emt 0:00:13]} 47. Kg4 {[%emt 0:00:48]} Rb1 {[%emt 0:00:25]} 48. Re3 {[%emt 0:01:07]} Rg1+ {[%emt 0:00:06]} 49. Kf3 {[%emt 0:01:15]} Kf6 {[%emt 0:00:27]} 50. Kf2 {[%emt 0:01:00]} Ra1 {[%emt 0:00:19]} 1/2-1/2

[Event "FIDE WCCC G12 2018"]
[Site "Santiago de Compostela"]
[Date "2018.11.10"]
[Round "6"]
[White "Savitha Shri B"]
[Black "Kairbekova, Amina"]
[Result "1-0"]
[ECO "C00"]
[WhiteElo "1745"]
[BlackElo "1939"]
[Annotator "NA"]
[PlyCount "81"]
[EventDate "2018.11.04"]
[EventType "swiss"]
[EventCountry "ESP"]
[SourceTitle "playchess.com"]
[Source "ChessBase"]
[SourceQuality "1"]
[TimeControl "40/5400+30:1800+30"]

1. e4 {[%emt 0:00:00]} e6 {[%emt 0:00:07]} 2. e5 {[%emt 0:01:18]} d5 {[%emt 0:00:36]} 3. exd6 {[%emt 0:00:33]} Bxd6 {[%emt 0:01:13]} 4. Nf3 {[%emt 0:00:07]} c5 {[%emt 0:00:27]} 5. b3 {[%emt 0:01:54]} Nf6 {[%emt 0:00:20]} 6. Bb2 {[%emt 0:00:08]} a6 {[%emt 0:00:14]} 7. a4 b6 {[%emt 0:00:07]} 8. g3 {[%emt 0:02:07]} Bb7 {[%emt 0:02:04]} 9. Bg2 {[%emt 0:00:02]} O-O {[%emt 0:01:15]} 10. O-O {[%emt 0:00:02]} b5 {[%emt 0:05:31]} 11. Na3 {[%emt 0:11:13]} bxa4 {[%emt 0:02:59]} 12. bxa4 $11 {[%emt 0:00:07]} Bd5 {[%emt 0:00:40]} 13. Qe2 {[%emt 0:03:01]} Nbd7 {[%emt 0:02:55]} 14. Nc4 {[%emt 0:03:38]} Bc7 {[%emt 0:04:00]} 15. Rfd1 {[%emt 0:03:13]} Nb6 {[%emt 0:04:22]} 16. Nxb6 {[%emt 0:03:35]} Bxb6 {[%emt 0:00:48]} 17. c4 {[%emt 0:00:20]} Bb7 {[%emt 0:04:58]} 18. Rab1 {[%emt 0:05:19]} Bxf3 {[%emt 0:05:17]} 19. Qxf3 {[%emt 0:00:02]} Rb8 {[%emt 0:02:23]} 20. Be5 {[%emt 0:05:27]} Bc7 {[%emt 0:01:23]} 21. Rxb8 {[%emt 0:00:02]} Bxb8 {[%emt 0:01:51]} 22. Bc3 {[%emt 0:00:02]} Ne8 {[%emt 0:09:17]} 23. Qb7 {[%emt 0:07:59]} a5 {[%emt 0:15:00]} 24. Qb5 {[%emt 0:04:03]} Bc7 {[%emt 0:01:50]} 25. Qxc5 {[%emt 0:01:59]} Bb6 {[%emt 0:00:23]} 26. Qe5 {[%emt 0:06:40]} Bc7 {[%emt 0:08:47]} 27. Qb5 {[%emt 0:06:26]} Nd6 28. Qc6 {[%emt 0:00:15]} Nf5 {[%emt 0:09:06]} 29. d4 {[%emt 0:00:40]} Qb8 {[%emt 0:05:22]} 30. Rc1 {[%emt 0:06:03]} Rc8 {[%emt 0:02:28]} 31. Qa6 {[%emt 0:00:18]} Rd8 {[%emt 0:01:17]} 32. d5 {[%emt 0:05:12]} Rd6 {[%emt 0:03:26]} 33. Qb5 {[%emt 0:02:24]} Rb6 {[%emt 0:00:42]} 34. Qc5 {[%emt 0:01:04]} Bd6 {[%emt 0:01:30]} 35. Qxa5 {[%emt 0:00:35]} Bc7 {[%emt 0:00:04]} 36. Be1 {[%emt 0:14:17]} Nd4 {[%emt 0:02:17]} 37. Rd1 {[%emt 0:02:49]} Rc6 {[%emt 0:02:51]} 38. dxc6 {[%emt 0:01:46]} Bxa5 {[%emt 0:00:04]} 39. Bxa5 {[%emt 0:00:04]} e5 40. c7 Qc8 41. Rb1 1-0

[Event "FIDE WCCC G12 2018"]
[Site "Santiago de Compostela"]
[Date "2018.11.10"]
[Round "6"]
[White "Francisco Guecamburu, Candela Be"]
[Black "Schiopu, Oana-Magdalena"]
[Result "1-0"]
[ECO "B52"]
[WhiteElo "1725"]
[BlackElo "1526"]
[Annotator "NA RC"]
[PlyCount "109"]
[EventDate "2018.11.04"]
[EventType "swiss"]
[EventCountry "ESP"]
[SourceTitle "playchess.com"]
[Source "ChessBase"]
[SourceQuality "1"]
[TimeControl "40/5400+30:1800+30"]

1. e4 {[%emt 0:00:00]} c5 {[%emt 0:00:00]} 2. Nf3 {[%emt 0:00:00]} d6 {[%emt 0:00:00]} 3. Bb5+ {[%emt 0:00:00]} Bd7 {[%emt 0:00:09]} 4. Bxd7+ {[%emt 0:00:00]} Qxd7 {[%emt 0:00:21]} 5. c4 {[%emt 0:00:54]} Nf6 {[%emt 0:04:20]} 6. Nc3 {[%emt 0:00:11]} Nc6 {[%emt 0:04:53]} 7. d4 {[%emt 0:01:06]} cxd4 {[%emt 0:01:43]} 8. Nxd4 {[%emt 0:00:07]} Rc8 {[%emt 0:00:37]} 9. b3 {[%emt 0:00:54]} a6 {[%emt 0:03:28]} 10. Bb2 {[%emt 0:01:18]} Nxd4 {[%emt 0:07:09]} 11. Qxd4 {[%emt 0:00:16]} e5 {[%emt 0:00:08]} 12. Qd3 {[%emt 0:01:56]} Be7 {[%emt 0:05:28]} 13. O-O {[%emt 0:05:59]} O-O {[%emt 0:05:34]} 14. Rfd1 {[%emt 0:04:49]} Ne8 {[%emt 0:11:01]} 15. Nd5 {[%emt 0:11:37]} Rc6 {[%emt 0:05:29]} 16. Bc3 {[%emt 0:16:48]} Bd8 {[%emt 0:10:42]} 17. Nb4 {[%emt 0:12:53]} Rc5 {[%emt 0:06:22]} 18. Qe3 {[%emt 0:00:41]} Bb6 {[%emt 0:01:54]} 19. Nd5 {[%emt 0:01:20]} Rxd5 {[%emt 0:01:59]} 20. Qxb6 {[%emt 0:00:30]} Rxd1+ {[%emt 0:00:32]} 21. Rxd1 {[%emt 0:00:00]} Qc6 {[%emt 0:02:36]} 22. Qxc6 {[%emt 0:08:46]} bxc6 {[%emt 0:00:07]} 23. c5 {[%emt 0:01:19]} dxc5 {[%emt 0:00:30]} 24. Bxe5 {[%emt 0:00:12]} f6 {[%emt 0:04:14]} 25. Bd6 {[%emt 0:00:42]} Nxd6 {[%emt 0:00:26]} 26. Rxd6 {[%emt 0:00:09]} Rc8 {[%emt 0:00:10]} 27. Kf1 {[%emt 0:01:05]} Kf8 {[%emt 0:00:59]} 28. Rd7 {[%emt 0:02:47]} Rb8 {[%emt 0:01:40]} 29. Ke2 {[%emt 0:00:34]} c4 {[%emt 0:00:28]} 30. bxc4 {[%emt 0:01:30]} Rb2+ {[%emt 0:00:10]} 31. Rd2 {[%emt 0:00:06]} Rb4 {[%emt 0:00:15]} 32. Kd3 {[%emt 0:01:12]} Rb1 {[%emt 0:01:26]} 33. Kd4 {[%emt 0:00:45]} Re1 {[%emt 0:01:27]} 34. f3 {[%emt 0:00:19]} Ke7 {[%emt 0:00:43]} 35. Kc5 {[%emt 0:03:15]} Rc1 {[%emt 0:00:24]} 36. Kb4 {[%emt 0:02:47]} Rb1+ {[%emt 0:02:56]} 37. Kc5 {[%emt 0:11:00]} Rc1 {[%emt 0:00:33]} 38. Rb2 {[%emt 0:02:32]} h6 {[%emt 0:05:25]} 39. Rb7+ {[%emt 0:02:22]} Kf8 {[%emt 0:00:13]} 40. Rb6 {[%emt 0:00:00]} Rc2 {[%emt 0:00:00]} 41. Rxa6 {[%emt 0:04:15]} Rxg2 {[%emt 0:00:29]} 42. a4 {[%emt 0:00:04]} Rxh2 {[%emt 0:00:09]} 43. a5 {[%emt 0:00:02]} Ra2 {[%emt 0:00:08]} 44. Ra8+ {[%emt 0:02:45]} Ke7 {[%emt 0:00:30]} 45. Kb6 {[%emt 0:00:55]} h5 {[%emt 0:00:42]} 46. Rc8 {[%emt 0:03:34]} h4 {[%emt 0:00:42]} 47. a6 {[%emt 0:00:18]} h3 {[%emt 0:00:38]} 48. a7 {[%emt 0:02:35]} h2 {[%emt 0:00:28]} 49. Rh8 {[%emt 0:00:16]} Kd7 {[%emt 0:00:35]} 50. Rxh2 {[%emt 0:00:31]} Rxh2 {[%emt 0:00:23]} 51. a8=Q {[%emt 0:00:09]} Rb2+ {[%emt 0:00:34]} 52. Kc5 {[%emt 0:00:06]} Rb3 {[%emt 0:00:12]} 53. Qxc6+ {[%emt 0:00:14]} Ke7 {[%emt 0:00:05]} 54. f4 {[%emt 0:00:53]} Rh3 {[%emt 0:00:32]} 55. Qc7+ {[%emt 0:00:17]} 1-0

[Event "FIDE WCCC G12 2018"]
[Site "Santiago de Compostela"]
[Date "2018.11.10"]
[Round "6"]
[White "Boramanikar Tanisha S"]
[Black "Dakic, Marta"]
[Result "1/2-1/2"]
[ECO "C41"]
[WhiteElo "1716"]
[BlackElo "1756"]
[Annotator "NA"]
[PlyCount "80"]
[EventDate "2018.11.04"]
[EventType "swiss"]
[EventCountry "ESP"]
[SourceTitle "playchess.com"]
[Source "ChessBase"]
[SourceQuality "1"]
[TimeControl "40/5400+30:1800+30"]

1. e4 {[%emt 0:00:00]} e5 {[%emt 0:00:00]} 2. Nf3 {[%emt 0:00:00]} d6 {[%emt 0:00:00]} 3. d4 {[%emt 0:00:17]} exd4 {[%emt 0:00:04]} 4. Nxd4 {[%emt 0:00:10]} Nf6 {[%emt 0:00:20]} 5. Nc3 {[%emt 0:00:38]} Be7 {[%emt 0:00:25]} 6. g3 {[%emt 0:00:59]} O-O {[%emt 0:01:59]} 7. Bg2 {[%emt 0:00:33]} Re8 {[%emt 0:00:48]} 8. O-O {[%emt 0:00:36]} Bf8 {[%emt 0:02:00]} 9. Bf4 {[%emt 0:04:09]} Nbd7 {[%emt 0:04:41]} 10. Re1 {[%emt 0:04:52]} h6 {[%emt 0:06:59]} 11. h4 {[%emt 0:08:49]} Nc5 {[%emt 0:09:22]} 12. Qd2 {[%emt 0:03:30]} c6 {[%emt 0:06:10]} 13. Rad1 {[%emt 0:04:00]} Nh5 {[%emt 0:08:06]} 14. Be3 {[%emt 0:02:27]} Nf6 {[%emt 0:05:17]} 15. f3 {[%emt 0:03:53]} d5 {[%emt 0:09:30]} 16. Qf2 {[%emt 0:06:29]} Ncd7 {[%emt 0:12:43]} 17. exd5 {[%emt 0:02:55]} cxd5 {[%emt 0:00:54]} 18. Nb3 {[%emt 0:02:35]} a6 {[%emt 0:05:51]} 19. Nxd5 {[%emt 0:02:48]} Nxd5 {[%emt 0:00:45]} 20. Rxd5 {[%emt 0:00:11]} Qc7 {[%emt 0:02:09]} 21. Red1 {[%emt 0:02:47]} Nf6 {[%emt 0:01:19]} 22. R5d3 {[%emt 0:05:39]} Bf5 {[%emt 0:03:51]} 23. Rc3 {[%emt 0:01:49]} Qe5 {[%emt 0:01:34]} 24. Bf4 {[%emt 0:02:34]} Qe2 {[%emt 0:05:57]} 25. Qxe2 {[%emt 0:04:43]} Rxe2 {[%emt 0:00:05]} 26. Nd4 {[%emt 0:04:30]} Rd8 {[%emt 0:00:50]} 27. Be3 {[%emt 0:09:20]} Rxc2 {[%emt 0:01:23]} 28. Rxc2 {[%emt 0:01:19]} Bxc2 {[%emt 0:00:06]} 29. Rc1 {[%emt 0:01:15]} Bg6 {[%emt 0:00:42]} 30. Bf2 {[%emt 0:01:36]} Nd5 {[%emt 0:02:10]} 31. a3 {[%emt 0:01:18]} Rd6 {[%emt 0:01:53]} 32. f4 {[%emt 0:00:59]} f6 {[%emt 0:01:02]} 33. Rc8 {[%emt 0:02:18]} Bf7 {[%emt 0:00:58]} 34. Nf5 {[%emt 0:00:36]} Rc6 {[%emt 0:01:43]} 35. Rd8 {[%emt 0:02:41]} Rc1+ {[%emt 0:00:40]} 36. Kh2 {[%emt 0:02:27]} Rc2 {[%emt 0:00:13]} 37. Kg1 {[%emt 0:03:27]} Rc1+ {[%emt 0:02:19]} 38. Kh2 {[%emt 0:05:13]} Rc2 {[%emt 0:00:06]} 39. Kg1 {[%emt 0:04:02]} Rc1+ {[%emt 0:00:27]} 40. Kh2 {[%emt 0:00:00]} Rc2 1/2-1/2

[Event "FIDE WCCC G12 2018"]
[Site "Santiago de Compostela"]
[Date "2018.11.10"]
[Round "6"]
[White "Bravo Mallco, Kate Azumi"]
[Black "Kaldarova, Ayaulym"]
[Result "1/2-1/2"]
[ECO "C02"]
[WhiteElo "1698"]
[BlackElo "1526"]
[Annotator "NA RC"]
[PlyCount "147"]
[EventDate "2018.11.04"]
[EventType "swiss"]
[EventCountry "ESP"]
[SourceTitle "playchess.com"]
[Source "ChessBase"]
[SourceQuality "1"]
[TimeControl "40/5400+30:1800+30"]

1. e4 {[%emt 0:00:00]} e6 {[%emt 0:00:00]} 2. d4 {[%emt 0:00:00]} d5 {[%emt 0:00:00]} 3. e5 {[%emt 0:00:00]} c5 {[%emt 0:00:07]} 4. c3 {[%emt 0:00:00]} Nc6 {[%emt 0:00:16]} 5. Nf3 {[%emt 0:00:06]} Bd7 {[%emt 0:00:32]} 6. a3 {[%emt 0:00:40]} Nge7 {[%emt 0:01:57]} 7. b4 {[%emt 0:00:30]} cxd4 {[%emt 0:00:43]} 8. cxd4 {[%emt 0:00:11]} Nf5 {[%emt 0:02:04]} 9. Be3 {[%emt 0:00:30]} b5 {[%emt 0:06:23]} 10. Nc3 {[%emt 0:03:46]} a5 {[%emt 0:02:14]} 11. Nxb5 {[%emt 0:14:30]} axb4 {[%emt 0:07:14]} 12. axb4 {[%emt 0:06:49]} Bxb4+ {[%emt 0:01:34]} 13. Bd2 {[%emt 0:11:35]} O-O {[%emt 0:04:36]} 14. Rb1 {[%emt 0:21:18]} Qa5 {[%emt 0:05:55]} 15. Bd3 {[%emt 0:02:21]} Rfb8 {[%emt 0:09:22]} 16. g4 {[%emt 0:05:53]} Nfe7 {[%emt 0:07:58]} 17. O-O {[%emt 0:04:11]} Rxb5 {[%emt 0:08:33]} 18. Bxb5 {[%emt 0:00:33]} Qxb5 {[%emt 0:00:05]} 19. Bxb4 {[%emt 0:07:07]} Nxb4 {[%emt 0:00:49]} 20. Qd2 {[%emt 0:00:07]} Nec6 {[%emt 0:00:37]} 21. Rfc1 {[%emt 0:00:27]} Ra3 {[%emt 0:07:46]} 22. Ne1 {[%emt 0:01:16]} Qa4 {[%emt 0:02:40]} 23. Rb2 {[%emt 0:06:26]} h6 {[%emt 0:02:35]} 24. Rcb1 {[%emt 0:01:07]} Qa6 {[%emt 0:07:43]} 25. Rxb4 {[%emt 0:07:26]} Nxb4 {[%emt 0:00:04]} 26. Qxb4 {[%emt 0:01:12]} Ra2 {[%emt 0:00:54]} 27. Rb2 {[%emt 0:00:38]} Ra1 {[%emt 0:02:43]} 28. Kg2 {[%emt 0:01:04]} Rd1 {[%emt 0:03:10]} 29. Qc3 {[%emt 0:01:40]} Qc4 {[%emt 0:03:05]} 30. Rb8+ {[%emt 0:02:04]} Kh7 {[%emt 0:00:06]} 31. Qxc4 {[%emt 0:01:16]} dxc4 {[%emt 0:00:05]} 32. Nc2 {[%emt 0:00:39]} Rd2 {[%emt 0:01:02]} 33. Ne3 {[%emt 0:00:14]} Rxd4 {[%emt 0:00:28]} 34. Rb4 {[%emt 0:00:17]} Bc6+ {[%emt 0:00:03]} 35. Kg3 {[%emt 0:00:15]} Bd5 {[%emt 0:00:13]} 36. Ra4 {[%emt 0:00:55]} Rd3 {[%emt 0:00:42]} 37. Ra7 {[%emt 0:00:34]} Kg8 {[%emt 0:01:13]} 38. Rc7 {[%emt 0:00:09]} Rb3 {[%emt 0:01:05]} 39. Rc8+ {[%emt 0:00:16]} Kh7 {[%emt 0:00:09]} 40. h4 {[%emt 0:00:00]} g5 {[%emt 0:00:00]} 41. hxg5 {[%emt 0:03:04]} hxg5 {[%emt 0:01:02]} 42. Kh2 {[%emt 0:01:20]} c3 {[%emt 0:04:12]} 43. Nd1 {[%emt 0:04:32]} Bf3 {[%emt 0:01:17]} 44. Nxc3 {[%emt 0:01:36]} Bxg4 {[%emt 0:00:21]} 45. Ne4 {[%emt 0:03:03]} Kg6 {[%emt 0:15:26]} 46. Rg8+ {[%emt 0:00:47]} Kf5 {[%emt 0:00:32]} 47. Nxg5 {[%emt 0:01:14]} Bh5 {[%emt 0:00:33]} 48. Nh7 {[%emt 0:15:40]} Bg6 {[%emt 0:02:10]} 49. Nf8 {[%emt 0:00:18]} Rd3 {[%emt 0:02:40]} 50. Kg2 {[%emt 0:01:17]} Rd5 {[%emt 0:00:38]} 51. Kg3 {[%emt 0:01:52]} Rxe5 {[%emt 0:00:21]} 52. Nxg6 {[%emt 0:00:06]} fxg6 {[%emt 0:00:05]} 53. Rf8+ {[%emt 0:01:18]} Ke4 {[%emt 0:00:04]} 54. Rf4+ {[%emt 0:00:55]} Kd5 {[%emt 0:01:35]} 55. Rg4 {[%emt 0:00:32]} g5 {[%emt 0:00:11]} 56. Ra4 {[%emt 0:00:40]} Rf5 {[%emt 0:01:42]} 57. f3 {[%emt 0:00:56]} e5 {[%emt 0:00:57]} 58. Rg4 {[%emt 0:00:03]} Kc5 {[%emt 0:00:36]} 59. Kf2 {[%emt 0:00:22]} Kd5 {[%emt 0:00:46]} 60. Kg3 {[%emt 0:00:21]} Ke6 {[%emt 0:00:16]} 61. Ra4 {[%emt 0:00:53]} Rf4 {[%emt 0:00:16]} 62. Ra6+ {[%emt 0:00:25]} Kf5 {[%emt 0:03:28]} 63. Ra8 {[%emt 0:00:34]} Kg6 {[%emt 0:01:40]} 64. Re8 {[%emt 0:00:41]} Kf6 {[%emt 0:00:17]} 65. Rf8+ {[%emt 0:00:21]} Ke7 {[%emt 0:00:49]} 66. Rg8 {[%emt 0:00:08]} Kf6 {[%emt 0:00:32]} 67. Rf8+ {[%emt 0:00:04]} Kg7 {[%emt 0:00:49]} 68. Re8 {[%emt 0:00:12]} Kf6 {[%emt 0:03:32]} 69. Rf8+ {[%emt 0:00:38]} Ke6 {[%emt 0:01:31]} 70. Rg8 {[%emt 0:00:16]} Rf5 {[%emt 0:00:50]} 71. Kg4 {[%emt 0:00:45]} Rf4+ {[%emt 0:00:03]} 72. Kg3 {[%emt 0:00:08]} Kf6 {[%emt 0:00:35]} 73. Rf8+ {[%emt 0:00:07]} Kg7 {[%emt 0:01:17]} 74. Re8 {[%emt 0:00:15]} 1/2-1/2

[Event "FIDE WCCC G12 2018"]
[Site "Santiago de Compostela"]
[Date "2018.11.10"]
[Round "6"]
[White "Zhou, Lepu Coco"]
[Black "Nadzamova, Viktoria"]
[Result "0-1"]
[ECO "B40"]
[WhiteElo "1617"]
[BlackElo "1923"]
[Annotator "NA RC"]
[PlyCount "123"]
[EventDate "2018.11.04"]
[EventType "swiss"]
[EventCountry "ESP"]
[SourceTitle "playchess.com"]
[Source "ChessBase"]
[SourceQuality "1"]
[TimeControl "40/5400+30:1800+30"]

1. e4 {[%emt 0:00:00]} c5 {[%emt 0:00:00]} 2. Nf3 {[%emt 0:00:00]} e6 {[%emt 0:00:00]} 3. c4 {[%emt 0:00:00]} Nc6 {[%emt 0:00:00]} 4. Nc3 {[%emt 0:00:00]} e5 {[%emt 0:00:01]} 5. d3 {[%emt 0:00:00]} d6 {[%emt 0:00:05]} 6. Be2 {[%emt 0:00:06]} g6 {[%emt 0:00:09]} 7. O-O {[%emt 0:00:16]} Bg7 {[%emt 0:00:04]} 8. Be3 {[%emt 0:00:54]} Nge7 {[%emt 0:01:07]} 9. Ne1 {[%emt 0:01:02]} O-O {[%emt 0:00:20]} 10. f4 {[%emt 0:00:22]} f5 {[%emt 0:05:25]} 11. Qd2 {[%emt 0:04:04]} Nd4 {[%emt 0:23:55]} 12. fxe5 {[%emt 0:03:53]} dxe5 {[%emt 0:06:00]} 13. Bg5 {[%emt 0:03:06]} Nxe2+ {[%emt 0:06:46]} 14. Qxe2 {[%emt 0:00:33]} h6 {[%emt 0:03:59]} 15. Bxe7 {[%emt 0:00:34]} Qxe7 {[%emt 0:00:10]} 16. Nd5 {[%emt 0:00:33]} Qd6 {[%emt 0:00:47]} 17. b4 {[%emt 0:05:33]} cxb4 {[%emt 0:06:24]} 18. Rb1 {[%emt 0:01:19]} a5 {[%emt 0:05:38]} 19. Qc2 {[%emt 0:05:45]} Qc5+ {[%emt 0:07:22]} 20. Qf2 {[%emt 0:03:04]} Qxf2+ {[%emt 0:02:33]} 21. Rxf2 {[%emt 0:00:08]} Rf7 {[%emt 0:02:02]} 22. Nc2 {[%emt 0:02:50]} Bf8 {[%emt 0:01:12]} 23. Rf3 {[%emt 0:03:40]} Bc5+ {[%emt 0:00:37]} 24. Kh1 {[%emt 0:00:14]} f4 {[%emt 0:00:41]} 25. h3 {[%emt 0:02:38]} g5 {[%emt 0:01:15]} 26. g4 {[%emt 0:05:25]} h5 {[%emt 0:05:16]} 27. gxh5 {[%emt 0:00:44]} g4 {[%emt 0:00:21]} 28. Rff1 {[%emt 0:02:40]} g3 {[%emt 0:03:49]} 29. Kg2 {[%emt 0:03:20]} Bf2 {[%emt 0:01:47]} 30. Ne1 {[%emt 0:01:21]} f3+ {[%emt 0:06:43]} 31. Nxf3 {[%emt 0:01:25]} Bxh3+ {[%emt 0:00:26]} 32. Kxh3 {[%emt 0:00:33]} Rxf3 {[%emt 0:00:06]} 33. Ne7+ {[%emt 0:01:16]} Kf7 {[%emt 0:03:17]} 34. Ng6 {[%emt 0:01:38]} Kf6 {[%emt 0:01:06]} 35. Rbd1 {[%emt 0:01:30]} Rd8 {[%emt 0:00:59]} 36. Nh4 {[%emt 0:03:44]} Rfxd3 {[%emt 0:01:24]} 37. Rxd3 {[%emt 0:00:18]} Rxd3 {[%emt 0:00:08]} 38. h6 {[%emt 0:01:22]} Kf7 {[%emt 0:04:25]} 39. Kg2 {[%emt 0:02:28]} Kg8 {[%emt 0:01:29]} 40. Nf3 {[%emt 0:00:00]} Kh7 {[%emt 0:00:00]} 41. Rh1 {[%emt 0:00:46]} Rd7 {[%emt 0:05:36]} 42. Ng5+ {[%emt 0:00:15]} Kh8 {[%emt 0:00:29]} 43. Ne6 {[%emt 0:02:06]} Re7 {[%emt 0:04:40]} 44. Nf8 {[%emt 0:00:52]} Re8 {[%emt 0:02:08]} 45. Ng6+ {[%emt 0:00:33]} Kh7 {[%emt 0:00:57]} 46. Nh4 {[%emt 0:03:50]} Kxh6 {[%emt 0:03:29]} 47. Nf5+ {[%emt 0:00:13]} Kg5 {[%emt 0:00:59]} 48. Nxg3 {[%emt 0:00:43]} Bxg3 {[%emt 0:00:34]} 49. Kxg3 {[%emt 0:00:10]} Rd8 {[%emt 0:00:31]} 50. Rf1 {[%emt 0:01:39]} Rd3+ {[%emt 0:00:59]} 51. Kg2 {[%emt 0:00:20]} Rd2+ {[%emt 0:00:44]} 52. Kg3 {[%emt 0:00:13]} Rxa2 {[%emt 0:00:30]} 53. Rf5+ {[%emt 0:00:07]} Kg6 {[%emt 0:00:03]} 54. Rxe5 {[%emt 0:00:13]} b3 {[%emt 0:01:03]} 55. Rb5 {[%emt 0:01:33]} a4 {[%emt 0:00:38]} 56. Rb6+ {[%emt 0:00:19]} Kg5 {[%emt 0:00:44]} 57. e5 {[%emt 0:01:11]} b2 {[%emt 0:01:06]} 58. e6 {[%emt 0:01:02]} Kf6 {[%emt 0:00:49]} 59. Kf4 {[%emt 0:02:24]} a3 {[%emt 0:00:18]} 60. Rxb7 {[%emt 0:04:40]} Kxe6 {[%emt 0:00:22]} 61. c5 {[%emt 0:01:57]} Ra1 {[%emt 0:00:20]} 62. Rb6+ {[%emt 0:02:10]} 0-1